[Event "Benidorm Satellite preliminary"]
[Site "playchess.com #007036"]
[Date "2009.10.24"]
[Round "2"]
[White "Lei"]
[Black "Vijayvikram"]
[Result "*"]
[WhiteElo "1382"]
[BlackElo "1743"]
[PlyCount "68"]
[EventDate "2009.10.24"]
[EventType "swiss (blitz)"]
[TimeControl "180+2"]

1. e4 {[%emt 0:00:02]} c5 {[%emt 0:00:01]} 2. Nf3 {[%emt 0:00:01]} d6 {[%emt 0:
00:01]} 3. d4 {[%emt 0:00:01]} cxd4 {[%emt 0:00:00]} 4. Nxd4 {[%emt 0:00:01]}
Nf6 {[%emt 0:00:00]} 5. Nc3 {[%emt 0:00:01]} Nc6 {[%emt 0:00:00]} 6. Be3 {
[%emt 0:00:03]} e6 {[%emt 0:00:01]} 7. Nxc6 {[%emt 0:00:01]} bxc6 {[%emt 0:00:
01]} 8. Bd3 {[%emt 0:00:02]} Be7 {[%emt 0:00:03]} 9. O-O {[%emt 0:00:01]} e5 {
[%emt 0:00:07]} 10. f4 {[%emt 0:00:03]} O-O {[%emt 0:00:10]} 11. f5 {[%emt 0:
00:04]} d5 {[%emt 0:00:08]} 12. Qe1 {[%emt 0:00:11]} d4 {[%emt 0:00:05]} 13.
Bh6 {[%emt 0:00:49]} gxh6 {[%emt 0:00:14]} 14. Ne2 {[%emt 0:00:18]} Kh8 {[%emt
0:00:05]} 15. Rf3 {[%emt 0:00:07]} Rg8 {[%emt 0:00:02]} 16. Rh3 {[%emt 0:00:13]
} h5 {[%emt 0:00:03]} 17. Qd2 {[%emt 0:00:13]} Qf8 {[%emt 0:00:12]} 18. Rf1 {
[%emt 0:00:07]} Rg4 {[%emt 0:00:10]} 19. Ng3 {[%emt 0:00:18]} Qg7 {[%emt 0:00:
11]} 20. Be2 {[%emt 0:00:05]} Nxe4 {[%emt 0:00:10]} 21. Nxe4 {[%emt 0:00:05]}
Rxe4 {[%emt 0:00:10]} 22. Bxh5 {[%emt 0:00:20]} Bg5 {[%emt 0:00:23]} 23. Qd3 {
[%emt 0:00:33]} Re3 {[%emt 0:00:09]} 24. Qc4 {[%emt 0:00:05]} Rxh3 {[%emt 0:00:
13] '} 25. Bxf7 {[%emt 0:00:06]} Be3+ {[%emt 0:00:23]} 26. Kh1 {[%emt 0:00:01]}
Rh4 {[%emt 0:00:17]} 27. Qxc6 {[%emt 0:00:01]} Rb8 {[%emt 0:00:08]} 28. f6 {
[%emt 0:00:01]} (28. Qe8+ Qg8 29. Qxg8#) 28... Qf8 {[%emt 0:00:07]} 29. Qd5 {
[%emt 0:00:03]} Bb7 {[%emt 0:00:02]} 30. Qxe5 {[%emt 0:00:02]} Rg4 {[%emt 0:00:
13]} 31. Rf3 {[%emt 0:00:03]} Bxf3 {[%emt 0:00:03]} 32. Bg6 {[%emt 0:00:03]}
Rxg6 {[%emt 0:00:02]} 33. f7+ {[%emt 0:00:01]} Rg7 {[%emt 0:00:02]} 34. Qf6 {
[%emt 0:00:02]} Bxg2# {[%emt 0:00:02] (Lag: Av=0.96s, max=2.1s) 0-1} *

[Event "Benidorm Satellite preliminary"]
[Site "playchess.com #007036"]
[Date "2009.10.24"]
[Round "11"]
[White "-st!er-"]
[Black "Kendo"]
[Result "1-0"]
[WhiteElo "2906"]
[BlackElo "2698"]
[PlyCount "101"]
[EventDate "2009.10.24"]
[EventType "swiss (blitz)"]
[TimeControl "180+2"]

{-st!er- offers a draw} 1. Nf3 {[%emt 0:00:10]} d5 {[%emt 0:00:02]} 2. g3 {
[%emt 0:00:01]} Nf6 {[%emt 0:00:01]} 3. Bg2 {[%emt 0:00:00]} c6 {[%emt 0:00:01]
} 4. O-O {[%emt 0:00:00]} Bg4 {[%emt 0:00:02]} 5. d4 {[%emt 0:00:01]} Nbd7 {
[%emt 0:00:03]} 6. Nbd2 {[%emt 0:00:01]} e6 {[%emt 0:00:08]} 7. Re1 {[%emt 0:
00:03]} Be7 {[%emt 0:00:09]} 8. e4 {[%emt 0:00:04]} dxe4 {[%emt 0:00:08]} 9.
Nxe4 {[%emt 0:00:01]} Nxe4 {[%emt 0:00:01]} 10. Rxe4 {[%emt 0:00:00]} Nf6 {
[%emt 0:00:05] Kendo bietet Remis} 11. Re1 {[%emt 0:00:01]} O-O {[%emt 0:00:01]
} 12. c3 {[%emt 0:00:01]} Re8 {[%emt 0:00:08]} 13. a4 {[%emt 0:00:04]} a5 {
[%emt 0:00:03]} 14. Qb3 {[%emt 0:00:01]} Qd5 {[%emt 0:00:33]} 15. Qxd5 {[%emt
0:00:10]} Nxd5 {[%emt 0:00:03]} 16. Ne5 {[%emt 0:00:01]} Bf5 {[%emt 0:00:04]}
17. h4 {[%emt 0:00:10]} Bd6 {[%emt 0:00:08]} 18. Nc4 {[%emt 0:00:15]} Bc7 {
[%emt 0:00:01]} 19. Bd2 {[%emt 0:00:06]} Bd3 {[%emt 0:00:11]} 20. Ne5 {[%emt 0:
00:02]} Bxe5 {[%emt 0:00:06]} 21. Rxe5 {[%emt 0:00:00]} Red8 {[%emt 0:00:05]}
22. h5 {[%emt 0:00:03]} h6 {[%emt 0:00:17]} 23. g4 {[%emt 0:00:05]} Nb6 {[%emt
0:00:14]} 24. b3 {[%emt 0:00:33]} Bc2 {[%emt 0:00:19]} 25. Ra3 {[%emt 0:00:02]}
Nd7 {[%emt 0:00:03]} 26. Re1 {[%emt 0:00:03]} Nf6 {[%emt 0:00:03]} 27. f3 {
[%emt 0:00:03]} Nd5 {[%emt 0:00:11]} 28. Kf2 {[%emt 0:00:05]} b6 {[%emt 0:00:
07]} 29. f4 {[%emt 0:00:17]} Rac8 {[%emt 0:00:08]} 30. Rc1 {[%emt 0:00:05]} Bd3
{[%emt 0:00:14]} 31. Raa1 {[%emt 0:00:43] .} Nf6 {[%emt 0:00:04]} 32. Bf3 {
[%emt 0:00:06]} Ne4+ {[%emt 0:00:06]} 33. Bxe4 {[%emt 0:00:01]} Bxe4 {[%emt 0:
00:00]} 34. Be3 {[%emt 0:00:01]} Kh7 {[%emt 0:00:11]} 35. Ra2 {[%emt 0:00:01]}
Rb8 {[%emt 0:00:02]} 36. c4 {[%emt 0:00:08]} f5 {[%emt 0:00:03]} 37. g5 {[%emt
0:00:02]} hxg5 {[%emt 0:00:05]} 38. fxg5 {[%emt 0:00:01]} g6 {[%emt 0:00:02]}
39. h6 {[%emt 0:00:01]} Re8 {[%emt 0:00:04]} 40. Bf4 {[%emt 0:00:01]} Rb7 {
[%emt 0:00:01]} 41. Rd2 {[%emt 0:00:05]} Ra8 {[%emt 0:00:02]} 42. Be5 {[%emt 0:
00:12]} Rd8 {[%emt 0:00:02]} 43. Bf6 {[%emt 0:00:02]} Rdd7 {[%emt 0:00:01]} 44.
Ke3 {[%emt 0:00:01]} Rd6 {[%emt 0:00:04]} 45. Kf4 {[%emt 0:00:03]} c5 {[%emt 0:
00:01]} 46. Be5 {[%emt 0:00:06]} Rd8 {[%emt 0:00:02]} 47. Bf6 {[%emt 0:00:01]}
Rd6 {[%emt 0:00:02]} 48. Rcd1 {[%emt 0:00:01]} Rbd7 {[%emt 0:00:02]} 49. Be5 {
[%emt 0:00:01]} Rc6 {[%emt 0:00:03]} 50. dxc5 {[%emt 0:00:01]} Rxd2 {[%emt 0:
00:01]} 51. Rxd2 {[%emt 0:00:00] Kendo gibt auf} 1-0